Workbook

Sheet Указания
C2: Инструкции за използване на калкулатор за оценка на въздействието върху здравето
C4: За да бъде изчислено въздействието върху здравето, е необходимо потребителят да въведе следните входни данни:
C5: · „Двойка „експозиция – резултат““ – Следва да се избере от падащото меню в Поле D7 за коя от заложените двойки рисков/протективен фактор – заболяване ще се извършат изчисленията;
C6: · „Общо население в риск“ в Поле D8 – Това е общият брой индивиди в съответната популация, напр., населението на даден град, за което се цели да се определи борят смъртни случаи, държащ се на излагането на наднормени нива на атмосферни замърсители. Потребителят следва внимателно да определени размера на населението според това дали го интересува здравното въздействие върху цялото население или върху само част от населението. Напр., ако се търси отражението на замърсяването на въздуха върху дихателни заболявания сред деца до 5 годишна възраст в гр. София, то населението в риск, което трябва да се посочи, няма да бъде цялото население на София или всички деца в София, а само броят на децата до 5 годишна възраст. Обичайно данни за населението в риск, особено когато се касае за цели населени места, могат да бъдат получени от Националния статистически институт. Ако не бъдат въведени данни за населението в риск, част от резултатите за въздействие могат да бъдат изчислени, но не и свързаните с експозицията случаи на 100 000 население.
C7: · „Общ брой случаи на заболяването“ или „Честота на заболяването / 100 000 население“ – Следва да се прецени дали се търси ефект на експозицията върху смъртност (и от какви причини), заболеваемост (брой новорегистрирани или нововъзникнали случаи за даден период) или за честота (болестност, или брой съществуващи случи към даден момент). Обикновено тази информация може да бъде получена от Националния статистически институт, НЦОЗА или друг източник на здравна статистика. В зависимост от наличните данни, потребителят може да въведе или общ брой случаи сред населението в риск в Поле D9, или брой на случите на 100 000 население в Поле D10, като калкулаторът автоматично преизчислява броят случаи от въведената честота (ако преди това в Поле D8 е въведен брой на населението в риск) или честотата от броя случаи.
C8: · „Базово ниво на експозиция“ в Поле D12 и „Алтернативно ниво на експозиция“ в Поле D13 – Необходимо е да се въведат стойностите на експозиция, които се сравняват. Въздействието върху здравето се изчислява във връзка с дадена разлика в експозицията – напр., по-висока спрямо по-ниска стойност. Напр., ако настоящото средногодишно ниво на ФПЧ2.5 в града е 25 mg/m3 и потребителят иска да изчисли колко по-малко смъртни случаи би имало, ако това ниво беше 5 mg/m3. Повечето експозиции са числови показатели, но замърсяването на въздуха в жилището е представено като две алтернативни категории, отразяващи неговото наличие или отсъствие – използване на замърсяващи горива и технологии за готвене и отопление или неизползваното им. Ако потребителят желае да изчисли свързаните с това замърсяване случаи, то следва да въведе числова стойност „1“ и „0“ в Поле D12 и Поле D12. В този случай, тестването на алтернативни сценарии на експозиция следва да става само чрез промяна в Поле D14 на процента на експонирани лица от населението.
C9: · „Брой експонирани лица“ или „Процент експонирани лица“ – Потребителят трябва да въведе или броят на индивидите от населението в риск, които са изложени на дадено ниво на съответния фактор в Поле D13, или техният процент от общото население в риск в Поле D14. Процентът се преизчислява автоматично при въведен брой, както и обратното (ако преди това в Поле D8 е въведен брой на населението в риск).
C10: За всеки от резултативните показатели в панела „Свързана с експозицията здравна тежест“ се изчислява средна стойност (която условно може да се приеме за основен резултат), както и т. нар. 95% интервал на неопределеност или несигурност. Последният представлява статистически интервал, който показва диапазона от стойности, в който с голяма вероятност се очаква да се намира истинската величина на оценявания здравен ефект, като се отчита несигурността в използваните данни за риск.
C12: Пример за използване на калкулатора
C13: В представения пример се търси приносът на експозицията на ФПЧ2.5 за общата смъртност от всички причини сред населението в размер 892 039 души, от които всички са изложени на средногодишно ниво на ФПМ2.5 от 25 mg/m3. За година са регистрирани общо 13 499 смъртни случая, от които искаме да знаем колко се дължат на тези нива на замърсяване спрямо алтернативна ситуация на по-ниско замърсяване от 5 mg/m3.
C14: Резултатите показват, че 2 241 случая (16.6% от всички смъртни случаи или 251 случаи на 100 000 население) вероятно се държат на това, че настоящото ниво на ФПЧ2.5 спрямо алтернативното. С други думи, ако нивото на ФПЧ2.5 беше 5 mg/m3, а не 25 mg/m3, то 2 241 смъртни случая сред населението в риск биха били предотвратени. Предотвратимите случаи биха могли да варират от 1 575 до 2 871.
C34: Ограничения на калкулатора
C35: · За момента потребителят може да избира от ограничен брой комбинации от експозиция и заболяване. Изборът им е ръководен от обхвата на проекта, както и от наличието на научни доказателства за наличие на причинно-следствена връзка и риск за здравето. В бъдеще този списък ще се разширява, а самите коефициенти за риск вероятно ще се променят, поради напредъка в научните изследвания и появата на нови и по-прецизни доказателства. Акцент е поставен върху някои от най-добре изучените характеристики на градската среда, но към момента не са включени влиянието на замърсяването на питейните води и водите за къпане, други химически фактори на околната среда, поведенчески или социални фактори.
C36: · Влиянието на факторите се отчита по отделно, без да се отчита потенциално съчетано въздействие на множество фактори или взаимодействия между тях.
C37: · Изчисленията се основават и на допускането за затворена и непроменяща се във времето популация в различните сравнявани сценарии, без да се взимат предвид потенциално движение на населението, промяна в здравния му статус, очаквана продължителност на живота и поведение в резултат на промяна в условията на средата. В този смисъл, оценката на въздействието върху здравето може да ес приеме за е базисна моментна снимка, като съществуват по-оптимални подходи за комплексна оценка на различни сценарии за развитие на градската среда.
C38: · В настоящата си версия калкулаторът не изчислява икономически показатели, приравняващи изчисленото здравно въздействие към финансов еквивалент или други показатели за здравна тежест. Подобна базисна функционалност би могла да се добави в следваща версия на калкулатора.
C39: · При определянето на интервала на несигурност за изчисляваните здравни показатели се отчита само несигурността, свързана с коефициента за риск, но не и тази, свързана с измерването на експозицията или други допускания. Въпреки че е възможно да бъде добавена допълнителна функционалност за отчитане на други източници на несигурност, обикновено това не води до съществена промяна в интервалите на несигурност, но би затруднило потребителя при въвеждането на входни параметри.
C41: Авторски права
C42: Извлечения от калкулатора могат да се преглеждат, възпроизвеждат или превеждат свободно за изследователски, професионални или лични цели, но не за продажба или за използване с комерсиални цели. Всяко използване на калкулатора и резултатите от него трябва да бъде съпроводено с посочване на източника на информация и проекта, финансирал генерирането на данните.
C44: Примерено позоваване на калкулатора: Джамбов АМ, Буров А, Маркевич Я, Хелбих М, Костадинов К, Димитрова Д, Ниуенхаузен МЙ. (2026). Калкулатор за оценка на въздействието върху здравето (Версия 1) [Excel файл]. Програма за стратегически изследвания и иновации за развитие на Медицински университет - Пловдив.
C46: Отказ от отговорност
C47: Този калкулатор за оценка на въздействието върху здравето е предоставен с информационна цел. Резултатите са ориентировъчни и се основават на налични данни, модели и допускания, които носят несигурност. Те не трябва да се използват като единствена основа за вземане на регулаторни, политически или клинични решения. Калкулаторът не изчислява ефекта върху здравето на отделни лица, а предоставя средна оценка за цялата изследвано население. Разработчиците не носят отговорност за последствията от използването или тълкуването на резултатите.

Sheet Калкулатор
C3: Калкулатор за оценка на въздействието върху здравето
A6: Ред за въвеждане | C6: Входни параметри
A7: № 1 | B7: Избери от списъка ---------------> | C7: Двойка "експозиция - резултат" | D7: ФПЧ2.5 – Обща смъртност | E7: <--- Падащ списък
A8: № 2 | B8: Въведи число ---------------------> | C8: Общо население в риск | D8: 892039 | E8: N
A9: № 3 | B9: Въведи брой ИЛИ честота ---> | C9: Общ брой случаи на заболяването | D9: 13499 | E9: N
C10: Честота на заболяването / 100 000 население | D10: 1513.274644 | E10: N
A11: № 4 | B11: Въведи число ---------------------> | C11: Базово ниво на експозиция | D11: 25 | E11: =INDEX(L57:L121, MATCH(D7, F57:F121, 0)) -> µg/m3
A12: № 5 | B12: Въведи число ---------------------> | C12: Алтернативно ниво на експозиция | D12: 5 | E12: =INDEX(L57:L121, MATCH(D7, F57:F121, 0)) -> µg/m3
A13: № 6 | B13: Въведи число ИЛИ процент -> | C13: Брой експонирани лица | D13: 892039 | E13: N
C14: Процент експонирани лица | D14: 100 | E14: %
C15: Рисков праг | D15: =INDEX(K57:K121, MATCH(D7, F57:F121, 0)) -> 5 | E15: =INDEX(L57:L121, MATCH(D7, F57:F121, 0)) -> µg/m3
C17: Стъпки на изчисление
C18: Разлика в нивата на експозиция | D18: =ABS(D11-D12) -> 20 | E18: =INDEX(L57:L121, MATCH(D7, F57:F121, 0)) -> µg/m3
C19: Риск | D19: =INDEX(G57:G121, MATCH(D7, F57:F121, 0)) -> 1.095
C20: Долна граница на риска | D20: =INDEX(H57:H121, MATCH(D7, F57:F121, 0)) -> 1.064
C21: Горна граница на риска | D21: =INDEX(I57:I121, MATCH(D7, F57:F121, 0)) -> 1.127
C22: Оригинално мащабиране на риска | D22: =INDEX(J57:J121, MATCH(D7, F57:F121, 0)) -> 10 | E22: =INDEX(L57:L121, MATCH(D7, F57:F121, 0)) -> µg/m3
C23: Риск премащабиран към разликата в нивата на експозиция | D23: =EXP((LN(D19)/D22)*D18) -> 1.199025
C24: Долна граница на премащабирания риск | D24: =EXP((LN(D20)/D22)*D18) -> 1.132096
C25: Горна граница на премащабирания риск | D25: =EXP((LN(D21)/D22)*D18) -> 1.270129
A27: Бележки | C27: Свързана с експозицията здравна тежест
A28: Процент на случаите на заболяване, свързан с експозицията | C28: =INDEX(S57:S121, MATCH(D7, F57:F121, 0)) -> Популационно атрибутивна фракция (долна граница) | D28: =(((D14/100)*(D24-1))/(((D14/100)*(D24-1))+1))*100 -> 11.66826842 | E28: %
C29: Популационно атрибутивна фракция (средна) | D29: =(((D14/100)*(D23-1))/(((D14/100)*(D23-1))+1))*100 -> 16.59890328 | E29: %
C30: =INDEX(T57:T121, MATCH(D7, F57:F121, 0)) -> Популационно атрибутивна фракция (горна граница) | D30: =(((D14/100)*(D25-1))/(((D14/100)*(D25-1))+1))*100 -> 21.26783972 | E30: %
A31: Брой на случаите на заболяване, свързан с експозицията | C31: =INDEX(O57:O121, MATCH(D7, F57:F121, 0)) -> Свързани случаи (долна граница) | D31: =(D28/100)*D9 -> 1575.099553 | E31: N
C32: Среден брой свързани случаи | D32: =(D29/100)*D9 -> 2240.685953 | E32: N
C33: =INDEX(P57:P121, MATCH(D7, F57:F121, 0)) -> Свързани случаи (горна граница) | D33: =(D30/100)*D9 -> 2870.945684 | E33: N
A34: Брой на случаите на заболяване на 100 000 души от населението, свързан с експозицията | C34: =INDEX(Q57:Q121, MATCH(D7, F57:F121, 0)) -> Свързани случаи / 100 000 (долна граница) | D34: =(D31/D8)*100000 -> 176.5729473 | E34: N
C35: Среден брой свързани случаи / 100 000 | D35: =(D32/D8)*100000 -> 251.1869944 | E35: N
C36: =INDEX(R57:R121, MATCH(D7, F57:F121, 0)) -> Свързани случаи / 100 000 (горна граница) | D36: =(D33/D8)*100000 -> 321.8408258 | E36: N
E56: Експозиция | F56: Резултат | G56: Коефициент за риск | H56: Долен 95% доверителен интервал на коефициента за риск | I56: Горен 95% доверителен интервал на коефициента за риск | J56: Оригинално мащабиране на коефицента за риск | K56: Начален праг за зависимостта "експозиция-риск" | L56: Мерна единица | M56: Източник на данните за риска | N56: Връзка с източника | O56: Lower CI bound attrib cases label | P56: (upper bound) CI bound attrib cases label | Q56: Lower CI bound cases / 100000 label | R56: Upper CI bound cases / 100000 label | S56: Lower CI bound AF label | T56: Upper CI bound AF label
E57: ФПЧ2.5 | F57: ФПЧ2.5 – Обща смъртност | G57: 1.095 | H57: 1.064 | I57: 1.127 | J57: 10 | K57: 5 | L57: µg/m3 | M57: Orellano et al., 2024 | N57: doi: 10.3389/ijph.2024.1607683 | O57: Свързани случаи (долна граница) | P57: Свързани случаи (горна граница) | Q57: Свързани случаи / 100 000 (долна граница) | R57: Свързани случаи / 100 000 (горна граница) | S57: Популационно атрибутивна фракция (долна граница) | T57: Популационно атрибутивна фракция (горна граница)
E58: ФПЧ2.5 | F58: ФПЧ2.5 – Смъртност от ССЗ | G58: 1.127 | H58: 1.102 | I58: 1.152 | J58: 10 | K58: 5 | L58: µg/m3 | M58: Orellano et al., 2024 | N58: doi: 10.3389/ijph.2024.1607683 | O58: Свързани случаи (долна граница) | P58: Свързани случаи (горна граница) | Q58: Свързани случаи / 100 000 (долна граница) | R58: Свързани случаи / 100 000 (горна граница) | S58: Популационно атрибутивна фракция (долна граница) | T58: Популационно атрибутивна фракция (горна граница)
E59: ФПЧ2.5 | F59: ФПЧ2.5 – Смъртност от респираторни заболявания | G59: 1.136 | H59: 1.079 | I59: 1.197 | J59: 10 | K59: 5 | L59: µg/m3 | M59: Orellano et al., 2024 | N59: doi: 10.3389/ijph.2024.1607683 | O59: Свързани случаи (долна граница) | P59: Свързани случаи (горна граница) | Q59: Свързани случаи / 100 000 (долна граница) | R59: Свързани случаи / 100 000 (горна граница) | S59: Популационно атрибутивна фракция (долна граница) | T59: Популационно атрибутивна фракция (горна граница)
E60: ФПЧ2.5 | F60: ФПЧ2.5 – Смъртност от рак на белия дроб | G60: 1.093 | H60: 1.053 | I60: 1.135 | J60: 10 | K60: 5 | L60: µg/m3 | M60: Orellano et al., 2024 | N60: doi: 10.3389/ijph.2024.1607683 | O60: Свързани случаи (долна граница) | P60: Свързани случаи (горна граница) | Q60: Свързани случаи / 100 000 (долна граница) | R60: Свързани случаи / 100 000 (горна граница) | S60: Популационно атрибутивна фракция (долна граница) | T60: Популационно атрибутивна фракция (горна граница)
E61: ФПЧ2.5 | F61: ФПЧ2.5 – Заболеваемост от хипертония | G61: 1.17 | H61: 1.05 | I61: 1.3 | J61: 10 | K61: 5 | L61: µg/m3 | M61: Forastiere et al., 2024 | N61: doi: 10.1097/EE9.0000000000000314 | O61: Свързани случаи (долна граница) | P61: Свързани случаи (горна граница) | Q61: Свързани случаи / 100 000 (долна граница) | R61: Свързани случаи / 100 000 (горна граница) | S61: Популационно атрибутивна фракция (долна граница) | T61: Популационно атрибутивна фракция (горна граница)
E62: ФПЧ2.5 | F62: ФПЧ2.5 – Заболеваемост от ИБС | G62: 1.13 | H62: 1.05 | I62: 1.22 | J62: 10 | K62: 5 | L62: µg/m3 | M62: Forastiere et al., 2024 | N62: doi: 10.1097/EE9.0000000000000314 | O62: Свързани случаи (долна граница) | P62: Свързани случаи (горна граница) | Q62: Свързани случаи / 100 000 (долна граница) | R62: Свързани случаи / 100 000 (горна граница) | S62: Популационно атрибутивна фракция (долна граница) | T62: Популационно атрибутивна фракция (горна граница)
E63: ФПЧ2.5 | F63: ФПЧ2.5 – Заболеваемост от инсулт | G63: 1.16 | H63: 1.12 | I63: 1.2 | J63: 10 | K63: 5 | L63: µg/m3 | M63: Forastiere et al., 2024 | N63: doi: 10.1097/EE9.0000000000000314 | O63: Свързани случаи (долна граница) | P63: Свързани случаи (горна граница) | Q63: Свързани случаи / 100 000 (долна граница) | R63: Свързани случаи / 100 000 (горна граница) | S63: Популационно атрибутивна фракция (долна граница) | T63: Популационно атрибутивна фракция (горна граница)
E64: ФПЧ2.5 | F64: ФПЧ2.5 – Заболеваемост от астма (деца) | G64: 1.34 | H64: 1.1 | I64: 1.63 | J64: 10 | K64: 5 | L64: µg/m3 | M64: Forastiere et al., 2024 | N64: doi: 10.1097/EE9.0000000000000314 | O64: Свързани случаи (долна граница) | P64: Свързани случаи (горна граница) | Q64: Свързани случаи / 100 000 (долна граница) | R64: Свързани случаи / 100 000 (горна граница) | S64: Популационно атрибутивна фракция (долна граница) | T64: Популационно атрибутивна фракция (горна граница)
E65: ФПЧ2.5 | F65: ФПЧ2.5 – Заболеваемост от ХОББ | G65: 1.18 | H65: 1.13 | I65: 1.23 | J65: 10 | K65: 5 | L65: µg/m3 | M65: Forastiere et al., 2024 | N65: doi: 10.1097/EE9.0000000000000314 | O65: Свързани случаи (долна граница) | P65: Свързани случаи (горна граница) | Q65: Свързани случаи / 100 000 (долна граница) | R65: Свързани случаи / 100 000 (горна граница) | S65: Популационно атрибутивна фракция (долна граница) | T65: Популационно атрибутивна фракция (горна граница)
E66: ФПЧ2.5 | F66: ФПЧ2.5 – Заболеваемост от диабет тип 2 | G66: 1.1 | H66: 1.03 | I66: 1.18 | J66: 10 | K66: 5 | L66: µg/m3 | M66: Forastiere et al., 2024 | N66: doi: 10.1097/EE9.0000000000000314 | O66: Свързани случаи (долна граница) | P66: Свързани случаи (горна граница) | Q66: Свързани случаи / 100 000 (долна граница) | R66: Свързани случаи / 100 000 (горна граница) | S66: Популационно атрибутивна фракция (долна граница) | T66: Популационно атрибутивна фракция (горна граница)
E68: NO2 | F68: NO2 – Обща смъртност | G68: 1.05 | H68: 1.03 | I68: 1.07 | J68: 10 | K68: 10 | L68: µg/m3 | M68: Kasdagli et al., 2024 | N68: doi: 10.3389/ijph.2024.1607676 | O68: Свързани случаи (долна граница) | P68: Свързани случаи (горна граница) | Q68: Свързани случаи / 100 000 (долна граница) | R68: Свързани случаи / 100 000 (горна граница) | S68: Популационно атрибутивна фракция (долна граница) | T68: Популационно атрибутивна фракция (горна граница)
E69: NO2 | F69: NO2 – Смъртност от ССЗ | G69: 1.05 | H69: 1.03 | I69: 1.08 | J69: 10 | K69: 10 | L69: µg/m3 | M69: Kasdagli et al., 2024 | N69: doi: 10.3389/ijph.2024.1607676 | O69: Свързани случаи (долна граница) | P69: Свързани случаи (горна граница) | Q69: Свързани случаи / 100 000 (долна граница) | R69: Свързани случаи / 100 000 (горна граница) | S69: Популационно атрибутивна фракция (долна граница) | T69: Популационно атрибутивна фракция (горна граница)
E70: NO2 | F70: NO2 – Смъртност от респираторни заболявания | G70: 1.05 | H70: 1.03 | I70: 1.07 | J70: 10 | K70: 10 | L70: µg/m3 | M70: Kasdagli et al., 2024 | N70: doi: 10.3389/ijph.2024.1607676 | O70: Свързани случаи (долна граница) | P70: Свързани случаи (горна граница) | Q70: Свързани случаи / 100 000 (долна граница) | R70: Свързани случаи / 100 000 (горна граница) | S70: Популационно атрибутивна фракция (долна граница) | T70: Популационно атрибутивна фракция (горна граница)
E71: NO2 | F71: NO2 – Смъртност от рак на белия дроб | G71: 1.07 | H71: 1.04 | I71: 1.1 | J71: 10 | K71: 10 | L71: µg/m3 | M71: Kasdagli et al., 2024 | N71: doi: 10.3389/ijph.2024.1607676 | O71: Свързани случаи (долна граница) | P71: Свързани случаи (горна граница) | Q71: Свързани случаи / 100 000 (долна граница) | R71: Свързани случаи / 100 000 (горна граница) | S71: Популационно атрибутивна фракция (долна граница) | T71: Популационно атрибутивна фракция (горна граница)
E72: NO2 | F72: NO2 – Заболеваемост от астма (възрастни) | G72: 1.1 | H72: 1.01 | I72: 1.21 | J72: 10 | K72: 10 | L72: µg/m3 | M72: Kasdagli et al., 2024 | N72: doi: 10.3389/ijph.2024.1607676 | O72: Свързани случаи (долна граница) | P72: Свързани случаи (горна граница) | Q72: Свързани случаи / 100 000 (долна граница) | R72: Свързани случаи / 100 000 (горна граница) | S72: Популационно атрибутивна фракция (долна граница) | T72: Популационно атрибутивна фракция (горна граница)
E73: NO2 | F73: NO2 – Заболеваемост от астма (деца) | G73: 1.1 | H73: 1.05 | I73: 1.18 | J73: 10 | K73: 10 | L73: µg/m3 | M73: Forastiere et al., 2024 | N73: doi: 10.1097/EE9.0000000000000314 | O73: Свързани случаи (долна граница) | P73: Свързани случаи (горна граница) | Q73: Свързани случаи / 100 000 (долна граница) | R73: Свързани случаи / 100 000 (горна граница) | S73: Популационно атрибутивна фракция (долна граница) | T73: Популационно атрибутивна фракция (горна граница)
E74: NO2 | F74: NO2 – Заболеваемост от ОИДДП (деца) | G74: 1.09 | H74: 1.03 | I74: 1.16 | J74: 10 | K74: 10 | L74: µg/m3 | M74: Forastiere et al., 2024 | N74: doi: 10.1097/EE9.0000000000000314 | O74: Свързани случаи (долна граница) | P74: Свързани случаи (горна граница) | Q74: Свързани случаи / 100 000 (долна граница) | R74: Свързани случаи / 100 000 (горна граница) | S74: Популационно атрибутивна фракция (долна граница) | T74: Популационно атрибутивна фракция (горна граница)
E76: Автомобилен шум (L24) | F76: Автомобилен шум (L24) – Обща смъртност | G76: 1.055 | H76: 1.026 | I76: 1.084 | J76: 10 | K76: 45 | L76: dBA | M76: Engelmann et al., 2024 Figure 3.1 | N76: https://www.eionet.europa.eu/etcs/etc-he/products/etc-he-products/etc-he-reports/etc-he-report-2023-11-environmental-noise-health-risk-assessment-methodology-for-assessing-health-risks-using-data-reported-under-the-environmental-noise-directive | O76: Свързани случаи (долна граница) | P76: Свързани случаи (горна граница) | Q76: Свързани случаи / 100 000 (долна граница) | R76: Свързани случаи / 100 000 (горна граница) | S76: Популационно атрибутивна фракция (долна граница) | T76: Популационно атрибутивна фракция (горна граница)
E77: Автомобилен шум (L24) | F77: Автомобилен шум (L24) – Заболеваемост от сърдечна недостатъчност | G77: 1.041 | H77: 1.024 | I77: 1.059 | J77: 10 | K77: 45 | L77: dBA | M77: Engelmann et al., 2024 Figure 3.6 | N77: https://www.eionet.europa.eu/etcs/etc-he/products/etc-he-products/etc-he-reports/etc-he-report-2023-11-environmental-noise-health-risk-assessment-methodology-for-assessing-health-risks-using-data-reported-under-the-environmental-noise-directive | O77: Свързани случаи (долна граница) | P77: Свързани случаи (горна граница) | Q77: Свързани случаи / 100 000 (долна граница) | R77: Свързани случаи / 100 000 (горна граница) | S77: Популационно атрибутивна фракция (долна граница) | T77: Популационно атрибутивна фракция (горна граница)
E78: Автомобилен шум (L24) | F78: Автомобилен шум (L24) – Заболеваемост от хипертония | G78: 1.01 | H78: 0.99 | I78: 1.03 | J78: 10 | K78: 45 | L78: dBA | M78: Engelmann et al., 2024 Figure 3.3 Cohort studies | N78: https://www.eionet.europa.eu/etcs/etc-he/products/etc-he-products/etc-he-reports/etc-he-report-2023-11-environmental-noise-health-risk-assessment-methodology-for-assessing-health-risks-using-data-reported-under-the-environmental-noise-directive | O78: Свързани случаи (долна граница) | P78: Свързани случаи (горна граница) | Q78: Свързани случаи / 100 000 (долна граница) | R78: Свързани случаи / 100 000 (горна граница) | S78: Популационно атрибутивна фракция (долна граница) | T78: Популационно атрибутивна фракция (горна граница)
E79: Автомобилен шум (L24) | F79: Автомобилен шум (L24) – Смъртност от инфаркт на миокарда | G79: 1.03 | H79: 1.01 | I79: 1.05 | J79: 10 | K79: 41 | L79: dBA | M79: Minkin et l., 2025, Supplementary Figure 11 | N79: https://doi.org/10.1016/j.envint.2025.109667 | O79: Свързани случаи (долна граница) | P79: Свързани случаи (горна граница) | Q79: Свързани случаи / 100 000 (долна граница) | R79: Свързани случаи / 100 000 (горна граница) | S79: Популационно атрибутивна фракция (долна граница) | T79: Популационно атрибутивна фракция (горна граница)
E80: Автомобилен шум (L24) | F80: Автомобилен шум (L24) – Смъртност от диабет | G80: 1.08 | H80: 0.99 | I80: 1.18 | J80: 10 | K80: 46 | L80: dBA | M80: Vienneau et al., 2024, Fig. 4 | N80: https://link.springer.com/article/10.1186/s12940-024-01084-0 | O80: Свързани случаи (долна граница) | P80: Свързани случаи (горна граница) | Q80: Свързани случаи / 100 000 (долна граница) | R80: Свързани случаи / 100 000 (горна граница) | S80: Популационно атрибутивна фракция (долна граница) | T80: Популационно атрибутивна фракция (горна граница)
E81: Автомобилен шум (L24) | F81: Автомобилен шум (L24) – Заболеваемост от диабет | G81: 1.07 | H81: 1.05 | I81: 1.09 | J81: 10 | K81: 46 | L81: dBA | M81: Vienneau et al., 2024, Fig. 4 | N81: https://link.springer.com/article/10.1186/s12940-024-01084-0 | O81: Свързани случаи (долна граница) | P81: Свързани случаи (горна граница) | Q81: Свързани случаи / 100 000 (долна граница) | R81: Свързани случаи / 100 000 (горна граница) | S81: Популационно атрибутивна фракция (долна граница) | T81: Популационно атрибутивна фракция (горна граница)
E82: Автомобилен шум (L24) | F82: Автомобилен шум (L24) – Заболеваемост от инфаркт на миокарда | G82: 1.029 | H82: 1.011 | I82: 1.048 | J82: 10 | K82: 40 | L82: dBA | M82: Pershagen et al., 2025 | N82: DOI: 10.1097/EE9.0000000000000400 | O82: Свързани случаи (долна граница) | P82: Свързани случаи (горна граница) | Q82: Свързани случаи / 100 000 (долна граница) | R82: Свързани случаи / 100 000 (горна граница) | S82: Популационно атрибутивна фракция (долна граница) | T82: Популационно атрибутивна фракция (горна граница)
E83: Автомобилен шум (L24) | F83: Автомобилен шум (L24) – Заболеваемост от инсулт | G83: 1.025 | H83: 1.009 | I83: 1.041 | J83: 10 | K83: 40 | L83: dBA | M83: Pershagen et al., 2025 | N83: DOI: 10.1097/EE9.0000000000000400 | O83: Свързани случаи (долна граница) | P83: Свързани случаи (горна граница) | Q83: Свързани случаи / 100 000 (долна граница) | R83: Свързани случаи / 100 000 (горна граница) | S83: Популационно атрибутивна фракция (долна граница) | T83: Популационно атрибутивна фракция (горна граница)
E84: Железопътен шум (L24) | F84: Железопътен шум (L24) – Обща смъртност | G84: 1.004 | H84: 1.001 | I84: 1.007 | J84: 10 | K84: 45 | L84: dBA | M84: Engelmann et al., 2024 Figure 3.1 | N84: https://www.eionet.europa.eu/etcs/etc-he/products/etc-he-products/etc-he-reports/etc-he-report-2023-11-environmental-noise-health-risk-assessment-methodology-for-assessing-health-risks-using-data-reported-under-the-environmental-noise-directive | O84: Свързани случаи (долна граница) | P84: Свързани случаи (горна граница) | Q84: Свързани случаи / 100 000 (долна граница) | R84: Свързани случаи / 100 000 (горна граница) | S84: Популационно атрибутивна фракция (долна граница) | T84: Популационно атрибутивна фракция (горна граница)
E85: Железопътен шум (L24) | F85: Железопътен шум (L24) – Смъртност от ИБС | G85: 1.02 | H85: 1.02 | I85: 1.03 | J85: 10 | K85: 32 | L85: dBA | M85: Minkin et l., 2025, Supplementary Figure 10 | N85: https://doi.org/10.1016/j.envint.2025.109667 | O85: Свързани случаи (долна граница) | P85: Свързани случаи (горна граница) | Q85: Свързани случаи / 100 000 (долна граница) | R85: Свързани случаи / 100 000 (горна граница) | S85: Популационно атрибутивна фракция (долна граница) | T85: Популационно атрибутивна фракция (горна граница)
E86: Железопътен шум (L24) | F86: Железопътен шум (L24) – Смъртност от инфаркт на миокарда | G86: 1.02 | H86: 1.01 | I86: 1.03 | J86: 10 | K86: 32 | L86: dBA | M86: Minkin et l., 2025, Supplementary Figure 11 | N86: https://doi.org/10.1016/j.envint.2025.109667 | O86: Свързани случаи (долна граница) | P86: Свързани случаи (горна граница) | Q86: Свързани случаи / 100 000 (долна граница) | R86: Свързани случаи / 100 000 (горна граница) | S86: Популационно атрибутивна фракция (долна граница) | T86: Популационно атрибутивна фракция (горна граница)
E87: Железопътен шум (L24) | F87: Железопътен шум (L24) – Заболеваемост от диабет | G87: 1.02 | H87: 1 | I87: 1.03 | J87: 10 | K87: 30 | L87: dBA | M87: Vienneau et al., 2024, Fig. 3 recalc. only incidence studies | N87: https://link.springer.com/article/10.1186/s12940-024-01084-0 | O87: Свързани случаи (долна граница) | P87: Свързани случаи (горна граница) | Q87: Свързани случаи / 100 000 (долна граница) | R87: Свързани случаи / 100 000 (горна граница) | S87: Популационно атрибутивна фракция (долна граница) | T87: Популационно атрибутивна фракция (горна граница)
E88: Авиационен шум (L24) | F88: Авиационен шум (L24) – Смъртност от инфаркт на миокарда | G88: 1.04 | H88: 1.02 | I88: 1.06 | J88: 10 | K88: 42 | L88: dBA | M88: Minkin et l., 2025, Supplementary Figure 11 recalc. no small-area studies | N88: https://doi.org/10.1016/j.envint.2025.109667 | O88: Свързани случаи (долна граница) | P88: Свързани случаи (горна граница) | Q88: Свързани случаи / 100 000 (долна граница) | R88: Свързани случаи / 100 000 (горна граница) | S88: Популационно атрибутивна фракция (долна граница) | T88: Популационно атрибутивна фракция (горна граница)
E89: Авиационен шум (L24) | F89: Авиационен шум (L24) – ЧЕстота на ИБС/инфаркт на миокарда (БГ) | G89: 1.15 | H89: 0.99 | I89: 1.34 | J89: 5 | K89: 37.5 | L89: dBA | M89: Dzhambov et al., 2025 Table 2, recalc with log-Poisson for prevalence RR | N89: https://doi.org/10.1016/j.ijheh.2024.114512 | O89: Свързани случаи (долна граница) | P89: Свързани случаи (горна граница) | Q89: Свързани случаи / 100 000 (долна граница) | R89: Свързани случаи / 100 000 (горна граница) | S89: Популационно атрибутивна фракция (долна граница) | T89: Популационно атрибутивна фракция (горна граница)
E91: NDVI (300 m) | F91: NDVI (300 m) – Обща смъртност | G91: 0.97 | H91: 0.95 | I91: 0.98 | J91: 0.1 | K91: линеен ефект | L91: единици | M91: Zhou et al., 2024, Fig. 3 (b) | N91: https://doi.org/10.1016/j.scs.2024.105901 | O91: Свързани случаи (горна граница) | P91: Свързани случаи (долна граница) | Q91: Свързани случаи / 100 000 (горна граница) | R91: Свързани случаи / 100 000 (долна граница) | S91: Популационно атрибутивна фракция (горна граница) | T91: Популационно атрибутивна фракция (долна граница)
E92: NDVI (300 m) | F92: NDVI (300 m) – Смъртност от ССЗ | G92: 0.98 | H92: 0.96 | I92: 1 | J92: 0.1 | K92: линеен ефект | L92: единици | M92: Zhou et al., 2024, Figure S2 | N92: https://doi.org/10.1016/j.scs.2024.105901 | O92: Свързани случаи (горна граница) | P92: Свързани случаи (долна граница) | Q92: Свързани случаи / 100 000 (горна граница) | R92: Свързани случаи / 100 000 (долна граница) | S92: Популационно атрибутивна фракция (горна граница) | T92: Популационно атрибутивна фракция (долна граница)
E93: NDVI (300 m) | F93: NDVI (300 m) – Смъртност от ИБС | G93: 0.98 | H93: 0.96 | I93: 1 | J93: 0.1 | K93: линеен ефект | L93: единици | M93: Liu et al., 2022, Table 2 | N93: https://doi.org/10.1016/j.envpol.2022.118990 | O93: Свързани случаи (горна граница) | P93: Свързани случаи (долна граница) | Q93: Свързани случаи / 100 000 (горна граница) | R93: Свързани случаи / 100 000 (долна граница) | S93: Популационно атрибутивна фракция (горна граница) | T93: Популационно атрибутивна фракция (долна граница)
E94: NDVI (300 m) | F94: NDVI (300 m) – Смъртност от мозъчносъдови заболявания | G94: 0.98 | H94: 0.97 | I94: 1 | J94: 0.1 | K94: линеен ефект | L94: единици | M94: Liu et al., 2022, Table 2 | N94: https://doi.org/10.1016/j.envpol.2022.118990 | O94: Свързани случаи (горна граница) | P94: Свързани случаи (долна граница) | Q94: Свързани случаи / 100 000 (горна граница) | R94: Свързани случаи / 100 000 (долна граница) | S94: Популационно атрибутивна фракция (горна граница) | T94: Популационно атрибутивна фракция (долна граница)
E95: NDVI (300 m) | F95: NDVI (300 m) – Смъртност от респираторни заболявания | G95: 0.95 | H95: 0.93 | I95: 0.97 | J95: 0.1 | K95: линеен ефект | L95: единици | M95: Zhou et al., 2024, Figure S4 | N95: https://doi.org/10.1016/j.scs.2024.105901 | O95: Свързани случаи (горна граница) | P95: Свързани случаи (долна граница) | Q95: Свързани случаи / 100 000 (горна граница) | R95: Свързани случаи / 100 000 (долна граница) | S95: Популационно атрибутивна фракция (горна граница) | T95: Популационно атрибутивна фракция (долна граница)
E96: NDVI (300 m) | F96: NDVI (300 m) – Смъртност от рак | G96: 0.95 | H96: 0.92 | I96: 0.98 | J96: 0.1 | K96: линеен ефект | L96: единици | M96: Zhou et al., 2024, Figure S6 | N96: https://doi.org/10.1016/j.scs.2024.105901 | O96: Свързани случаи (горна граница) | P96: Свързани случаи (долна граница) | Q96: Свързани случаи / 100 000 (горна граница) | R96: Свързани случаи / 100 000 (долна граница) | S96: Популационно атрибутивна фракция (горна граница) | T96: Популационно атрибутивна фракция (долна граница)
E97: NDVI (250/300 m) | F97: NDVI (250/300 m) – Честота на хипертония | G97: 0.98 | H97: 0.97 | I97: 0.99 | J97: 0.1 | K97: линеен ефект | L97: единици | M97: Zhao et al., 2022, Fig. 2 | N97: https://doi.org/10.1016/j.scitotenv.2021.152513 | O97: Свързани случаи (горна граница) | P97: Свързани случаи (долна граница) | Q97: Свързани случаи / 100 000 (горна граница) | R97: Свързани случаи / 100 000 (долна граница) | S97: Популационно атрибутивна фракция (горна граница) | T97: Популационно атрибутивна фракция (долна граница)
E98: NDVI (300 m) | F98: NDVI (300 m) – Заболеваемост/честота на инсулт | G98: 0.98 | H98: 0.96 | I98: 0.99 | J98: 0.1 | K98: линеен ефект | L98: единици | M98: Liu et al., 2022, Table 2 | N98: https://doi.org/10.1016/j.envpol.2022.118990 | O98: Свързани случаи (горна граница) | P98: Свързани случаи (долна граница) | Q98: Свързани случаи / 100 000 (горна граница) | R98: Свързани случаи / 100 000 (долна граница) | S98: Популационно атрибутивна фракция (горна граница) | T98: Популационно атрибутивна фракция (долна граница)
E99: NDVI (500 m) | F99: NDVI (500 m) – Преждевременно раждане | G99: 0.98 | H99: 0.98 | I99: 0.99 | J99: 0.1 | K99: линеен ефект | L99: единици | M99: Hu et al., 2021, Fig. S5 | N99: https://doi.org/10.1016/j.envres.2020.110599 | O99: Свързани случаи (горна граница) | P99: Свързани случаи (долна граница) | Q99: Свързани случаи / 100 000 (горна граница) | R99: Свързани случаи / 100 000 (долна граница) | S99: Популационно атрибутивна фракция (горна граница) | T99: Популационно атрибутивна фракция (долна граница)
E100: Зелени площи % (300/500 m) | F100: Зелени площи % (300/500 m) – Обща смъртност | G100: 0.99 | H100: 0.99 | I100: 1 | J100: 10 | K100: линеен ефект | L100: % | M100: Zhou et al., 2024, Fig. 4 (b) | N100: https://doi.org/10.1016/j.scs.2024.105901 | O100: Свързани случаи (горна граница) | P100: Свързани случаи (долна граница) | Q100: Свързани случаи / 100 000 (горна граница) | R100: Свързани случаи / 100 000 (долна граница) | S100: Популационно атрибутивна фракция (горна граница) | T100: Популационно атрибутивна фракция (долна граница)
E101: Зелени площи % (300 m) | F101: Зелени площи % (300 m) – Смъртност от респираторни заболявания | G101: 0.99 | H101: 0.98 | I101: 0.99 | J101: 10 | K101: линеен ефект | L101: % | M101: Zhou et al., 2024, Figure S5 | N101: https://doi.org/10.1016/j.scs.2024.105901 | O101: Свързани случаи (горна граница) | P101: Свързани случаи (долна граница) | Q101: Свързани случаи / 100 000 (горна граница) | R101: Свързани случаи / 100 000 (долна граница) | S101: Популационно атрибутивна фракция (горна граница) | T101: Популационно атрибутивна фракция (долна граница)
E102: Зелени площи % (300 m) | F102: Зелени площи % (300 m) – Смъртност от рак | G102: 0.99 | H102: 0.97 | I102: 1 | J102: 10 | K102: линеен ефект | L102: % | M102: Zhou et al., 2024, Figure S7 | N102: https://doi.org/10.1016/j.scs.2024.105901 | O102: Свързани случаи (горна граница) | P102: Свързани случаи (долна граница) | Q102: Свързани случаи / 100 000 (горна граница) | R102: Свързани случаи / 100 000 (долна граница) | S102: Популационно атрибутивна фракция (горна граница) | T102: Популационно атрибутивна фракция (долна граница)
E103: Дървесна покривка % (300 m) | F103: Дървесна покривка % (300 m) – Честота на диабет (БГ) | G103: 0.81 | H103: 0.67 | I103: 0.97 | J103: 10 | K103: линеен ефект | L103: % | M103: Dzhambov et al., 2025 Table 2, recalc with log-Poisson for prevalence RR | N103: https://doi.org/10.1016/j.ijheh.2024.114512 | O103: Свързани случаи (горна граница) | P103: Свързани случаи (долна граница) | Q103: Свързани случаи / 100 000 (горна граница) | R103: Свързани случаи / 100 000 (долна граница) | S103: Популационно атрибутивна фракция (горна граница) | T103: Популационно атрибутивна фракция (долна граница)
E105: Замърсяване на въздуха в жилището | F105: Замърсяване на въздуха в жилището-Заболеваемост от астма | G105: 1.68 | H105: 1.22 | I105: 2.33 | J105: 1 | K105: 1 = Използване на замърсяващи горива/технологии | L105: 1 = замърсяване / 0 = липса на замърсяване | M105: Lee et al., 2020, Table 1, Figure S32 | N105: https://www.thelancet.com/journals/langlo/article/PIIS2214-109X(20)30343-0/fulltext | O105: Свързани случаи (долна граница) | P105: Свързани случаи (горна граница) | Q105: Свързани случаи / 100 000 (долна граница) | R105: Свързани случаи / 100 000 (горна граница) | S105: Популационно атрибутивна фракция (долна граница) | T105: Популационно атрибутивна фракция (горна граница)
E106: Замърсяване на въздуха в жилището | F106: Замърсяване на въздуха в жилището-Заболеваемост от ХОББ | G106: 1.21 | H106: 1.12 | I106: 1.31 | J106: 1 | K106: 1 = Използване на замърсяващи горива/технологии | L106: 1 = замърсяване / 0 = липса на замърсяване | M106: Lee et al., 2020, Table 1, Figure S32 | N106: https://www.thelancet.com/journals/langlo/article/PIIS2214-109X(20)30343-0/fulltext | O106: Свързани случаи (долна граница) | P106: Свързани случаи (горна граница) | Q106: Свързани случаи / 100 000 (долна граница) | R106: Свързани случаи / 100 000 (горна граница) | S106: Популационно атрибутивна фракция (долна граница) | T106: Популационно атрибутивна фракция (горна граница)
E107: Замърсяване на въздуха в жилището | F107: Замърсяване на въздуха в жилището-Заболеваемост от ОРЗ (възрастни) | G107: 1.47 | H107: 1.26 | I107: 1.7 | J107: 1 | K107: 1 = Използване на замърсяващи горива/технологии | L107: 1 = замърсяване / 0 = липса на замърсяване | M107: Lee et al., 2020, Table 1, Figure S32 | N107: https://www.thelancet.com/journals/langlo/article/PIIS2214-109X(20)30343-0/fulltext | O107: Свързани случаи (долна граница) | P107: Свързани случаи (горна граница) | Q107: Свързани случаи / 100 000 (долна граница) | R107: Свързани случаи / 100 000 (горна граница) | S107: Популационно атрибутивна фракция (долна граница) | T107: Популационно атрибутивна фракция (горна граница)
E108: Замърсяване на въздуха в жилището | F108: Замърсяване на въздуха в жилището-Заболеваемост от ОРЗ (деца) | G108: 1.39 | H108: 1.16 | I108: 1.68 | J108: 1 | K108: 1 = Използване на замърсяващи горива/технологии | L108: 1 = замърсяване / 0 = липса на замърсяване | M108: Lee et al., 2020, Table 1, Figure S32 | N108: https://www.thelancet.com/journals/langlo/article/PIIS2214-109X(20)30343-0/fulltext | O108: Свързани случаи (долна граница) | P108: Свързани случаи (горна граница) | Q108: Свързани случаи / 100 000 (долна граница) | R108: Свързани случаи / 100 000 (горна граница) | S108: Популационно атрибутивна фракция (долна граница) | T108: Популационно атрибутивна фракция (горна граница)
E109: Замърсяване на въздуха в жилището | F109: Замърсяване на въздуха в жилището-Заболеваемост от рак на белия дроб | G109: 1.39 | H109: 0.99 | I109: 1.96 | J109: 1 | K109: 1 = Използване на замърсяващи горива/технологии | L109: 1 = замърсяване / 0 = липса на замърсяване | M109: Lee et al., 2020, Table 1, Figure S32 | N109: https://www.thelancet.com/journals/langlo/article/PIIS2214-109X(20)30343-0/fulltext | O109: Свързани случаи (долна граница) | P109: Свързани случаи (горна граница) | Q109: Свързани случаи / 100 000 (долна граница) | R109: Свързани случаи / 100 000 (горна граница) | S109: Популационно атрибутивна фракция (долна граница) | T109: Популационно атрибутивна фракция (горна граница)
E110: Замърсяване на въздуха в жилището | F110: Замърсяване на въздуха в жилището-Заболевамост/честота на туберкулоза | G110: 1.26 | H110: 1.08 | I110: 1.48 | J110: 1 | K110: 1 = Използване на замърсяващи горива/технологии | L110: 1 = замърсяване / 0 = липса на замърсяване | M110: Lee et al., 2020, Table 1 | N110: https://www.thelancet.com/journals/langlo/article/PIIS2214-109X(20)30343-0/fulltext | O110: Свързани случаи (долна граница) | P110: Свързани случаи (горна граница) | Q110: Свързани случаи / 100 000 (долна граница) | R110: Свързани случаи / 100 000 (горна граница) | S110: Популационно атрибутивна фракция (долна граница) | T110: Популационно атрибутивна фракция (горна граница)
E111: Замърсяване на въздуха в жилището | F111: Замърсяване на въздуха в жилището-Заболеваемост от респираторни заболявания | G111: 1.31 | H111: 1.25 | I111: 1.37 | J111: 1 | K111: 1 = Използване на замърсяващи горива/технологии | L111: 1 = замърсяване / 0 = липса на замърсяване | M111: Lee et al., 2020, Table 1, Figure S32 | N111: https://www.thelancet.com/journals/langlo/article/PIIS2214-109X(20)30343-0/fulltext | O111: Свързани случаи (долна граница) | P111: Свързани случаи (горна граница) | Q111: Свързани случаи / 100 000 (долна граница) | R111: Свързани случаи / 100 000 (горна граница) | S111: Популационно атрибутивна фракция (долна граница) | T111: Популационно атрибутивна фракция (горна граница)
E112: Замърсяване на въздуха в жилището | F112: Замърсяване на въздуха в жилището-Заболеваемост от мозъчносъдови заболявания | G112: 1.06 | H112: 1.01 | I112: 1.1 | J112: 1 | K112: 1 = Използване на замърсяващи горива/технологии | L112: 1 = замърсяване / 0 = липса на замърсяване | M112: Lee et al., 2020, Table 1, Figure S32 | N112: https://www.thelancet.com/journals/langlo/article/PIIS2214-109X(20)30343-0/fulltext | O112: Свързани случаи (долна граница) | P112: Свързани случаи (горна граница) | Q112: Свързани случаи / 100 000 (долна граница) | R112: Свързани случаи / 100 000 (горна граница) | S112: Популационно атрибутивна фракция (долна граница) | T112: Популационно атрибутивна фракция (горна граница)
E113: Замърсяване на въздуха в жилището | F113: Замърсяване на въздуха в жилището-Заболеваемост/честота на ИБС | G113: 1.08 | H113: 1.03 | I113: 1.13 | J113: 1 | K113: 1 = Използване на замърсяващи горива/технологии | L113: 1 = замърсяване / 0 = липса на замърсяване | M113: Lee et al., 2020, Table 1, Figure S32 | N113: https://www.thelancet.com/journals/langlo/article/PIIS2214-109X(20)30343-0/fulltext | O113: Свързани случаи (долна граница) | P113: Свързани случаи (горна граница) | Q113: Свързани случаи / 100 000 (долна граница) | R113: Свързани случаи / 100 000 (горна граница) | S113: Популационно атрибутивна фракция (долна граница) | T113: Популационно атрибутивна фракция (горна граница)
E114: Замърсяване на въздуха в жилището | F114: Замърсяване на въздуха в жилището-Заболеваемост от ССЗ | G114: 1.15 | H114: 1.05 | I114: 1.26 | J114: 1 | K114: 1 = Използване на замърсяващи горива/технологии | L114: 1 = замърсяване / 0 = липса на замърсяване | M114: Lee et al., 2020, Table 1, Figure S32 | N114: https://www.thelancet.com/journals/langlo/article/PIIS2214-109X(20)30343-0/fulltext | O114: Свързани случаи (долна граница) | P114: Свързани случаи (горна граница) | Q114: Свързани случаи / 100 000 (долна граница) | R114: Свързани случаи / 100 000 (горна граница) | S114: Популационно атрибутивна фракция (долна граница) | T114: Популационно атрибутивна фракция (горна граница)
E115: Замърсяване на въздуха в жилището | F115: Замърсяване на въздуха в жилището-Честота на ниско тегло при раждане | G115: 1.39 | H115: 1.18 | I115: 1.64 | J115: 1 | K115: 1 = Използване на замърсяващи горива/технологии | L115: 1 = замърсяване / 0 = липса на замърсяване | M115: Lee et al., 2020, Table 1, Figure S30 | N115: https://www.thelancet.com/journals/langlo/article/PIIS2214-109X(20)30343-0/fulltext | O115: Свързани случаи (долна граница) | P115: Свързани случаи (горна граница) | Q115: Свързани случаи / 100 000 (долна граница) | R115: Свързани случаи / 100 000 (горна граница) | S115: Популационно атрибутивна фракция (долна граница) | T115: Популационно атрибутивна фракция (горна граница)
E116: Замърсяване на въздуха в жилището | F116: Замърсяване на въздуха в жилището-Честота на мъртво раждане | G116: 1.31 | H116: 1.21 | I116: 1.42 | J116: 1 | K116: 1 = Използване на замърсяващи горива/технологии | L116: 1 = замърсяване / 0 = липса на замърсяване | M116: Lee et al., 2020, Table 1, Figure S30 | N116: https://www.thelancet.com/journals/langlo/article/PIIS2214-109X(20)30343-0/fulltext | O116: Свързани случаи (долна граница) | P116: Свързани случаи (горна граница) | Q116: Свързани случаи / 100 000 (долна граница) | R116: Свързани случаи / 100 000 (горна граница) | S116: Популационно атрибутивна фракция (долна граница) | T116: Популационно атрибутивна фракция (горна граница)
E117: Замърсяване на въздуха в жилището | F117: Замърсяване на въздуха в жилището-Обща смъртност | G117: 1.08 | H117: 1.03 | I117: 1.14 | J117: 1 | K117: 1 = Използване на замърсяващи горива/технологии | L117: 1 = замърсяване / 0 = липса на замърсяване | M117: Lee et al., 2020, Table 1, Figure S31 | N117: https://www.thelancet.com/journals/langlo/article/PIIS2214-109X(20)30343-0/fulltext | O117: Свързани случаи (долна граница) | P117: Свързани случаи (горна граница) | Q117: Свързани случаи / 100 000 (долна граница) | R117: Свързани случаи / 100 000 (горна граница) | S117: Популационно атрибутивна фракция (долна граница) | T117: Популационно атрибутивна фракция (горна граница)
E118: Замърсяване на въздуха в жилището | F118: Замърсяване на въздуха в жилището-Смъртност при деца под 5 години | G118: 1.24 | H118: 1.05 | I118: 1.47 | J118: 1 | K118: 1 = Използване на замърсяващи горива/технологии | L118: 1 = замърсяване / 0 = липса на замърсяване | M118: Lee et al., 2020, Table 1, Figure S31 | N118: https://www.thelancet.com/journals/langlo/article/PIIS2214-109X(20)30343-0/fulltext | O118: Свързани случаи (долна граница) | P118: Свързани случаи (горна граница) | Q118: Свързани случаи / 100 000 (долна граница) | R118: Свързани случаи / 100 000 (горна граница) | S118: Популационно атрибутивна фракция (долна граница) | T118: Популационно атрибутивна фракция (горна граница)
E119: Замърсяване на въздуха в жилището | F119: Замърсяване на въздуха в жилището-Смъртност от ССЗ | G119: 1.07 | H119: 1.03 | I119: 1.11 | J119: 1 | K119: 1 = Използване на замърсяващи горива/технологии | L119: 1 = замърсяване / 0 = липса на замърсяване | M119: Lee et al., 2020, Table 1, Figure S31 | N119: https://www.thelancet.com/journals/langlo/article/PIIS2214-109X(20)30343-0/fulltext | O119: Свързани случаи (долна граница) | P119: Свързани случаи (горна граница) | Q119: Свързани случаи / 100 000 (долна граница) | R119: Свързани случаи / 100 000 (горна граница) | S119: Популационно атрибутивна фракция (долна граница) | T119: Популационно атрибутивна фракция (горна граница)
E120: Замърсяване на въздуха в жилището | F120: Замърсяване на въздуха в жилището-Смъртност от респираторни заболявания | G120: 1.27 | H120: 1.01 | I120: 1.58 | J120: 1 | K120: 1 = Използване на замърсяващи горива/технологии | L120: 1 = замърсяване / 0 = липса на замърсяване | M120: Lee et al., 2020, Table 1, Figure S31 | N120: https://www.thelancet.com/journals/langlo/article/PIIS2214-109X(20)30343-0/fulltext | O120: Свързани случаи (долна граница) | P120: Свързани случаи (горна граница) | Q120: Свързани случаи / 100 000 (долна граница) | R120: Свързани случаи / 100 000 (горна граница) | S120: Популационно атрибутивна фракция (долна граница) | T120: Популационно атрибутивна фракция (горна граница)
E121: Замърсяване на въздуха в жилището | F121: Замърсяване на въздуха в жилището-Честота на ИБС/инфаркт на миокарда (БГ) | G121: 1.49 | H121: 1.12 | I121: 2 | J121: 1 | K121: 1 = Използване на замърсяващи горива/технологии | L121: 1 = замърсяване / 0 = липса на замърсяване | M121: Dzhambov et al., 2025 Table 2, recalc with log-Poisson for prevalence RR | N121: https://doi.org/10.1016/j.ijheh.2024.114512 | O121: Свързани случаи (долна граница) | P121: Свързани случаи (горна граница) | Q121: Свързани случаи / 100 000 (долна граница) | R121: Свързани случаи / 100 000 (горна граница) | S121: Популационно атрибутивна фракция (долна граница) | T121: Популационно атрибутивна фракция (горна граница)

Sheet Коефициенти за риск
E3: Експозиция | F3: Резултат | G3: Коефициент за риск | H3: Долен 95% доверителен интервал на коефициента за риск | I3: Горен 95% доверителен интервал на коефициента за риск | J3: Оригинално мащабиране на коефицента за риск | K3: Начален праг за зависимостта "експозиция-риск" | L3: Мерна единица | M3: Източник на данните за риска | N3: Връзка с източника
E4: ФПЧ2.5 | F4: Обща смъртност | G4: 1.095 | H4: 1.064 | I4: 1.127 | J4: 10 | K4: 5 | L4: µg/m3 | M4: Orellano et al., 2024 | N4: https://doi.org/10.3389/ijph.2024.1607683
E5: ФПЧ2.5 | F5: Смъртност от ССЗ | G5: 1.127 | H5: 1.102 | I5: 1.152 | J5: 10 | K5: 5 | L5: µg/m3 | M5: Orellano et al., 2024 | N5: https://doi.org/10.3389/ijph.2024.1607683
E6: ФПЧ2.5 | F6: Смъртност от респираторни заболявания | G6: 1.136 | H6: 1.079 | I6: 1.197 | J6: 10 | K6: 5 | L6: µg/m3 | M6: Orellano et al., 2024 | N6: https://doi.org/10.3389/ijph.2024.1607683
E7: ФПЧ2.5 | F7: Смъртност от рак на белия дроб | G7: 1.093 | H7: 1.053 | I7: 1.135 | J7: 10 | K7: 5 | L7: µg/m3 | M7: Orellano et al., 2024 | N7: https://doi.org/10.3389/ijph.2024.1607683
E8: ФПЧ2.5 | F8: Заболеваемост от хипертония | G8: 1.17 | H8: 1.05 | I8: 1.3 | J8: 10 | K8: 5 | L8: µg/m3 | M8: Forastiere et al., 2024 | N8: doi: 10.1097/EE9.0000000000000314
E9: ФПЧ2.5 | F9: Заболеваемост от ИБС | G9: 1.13 | H9: 1.05 | I9: 1.22 | J9: 10 | K9: 5 | L9: µg/m3 | M9: Forastiere et al., 2024 | N9: doi: 10.1097/EE9.0000000000000314
E10: ФПЧ2.5 | F10: Заболеваемост от инсулт | G10: 1.16 | H10: 1.12 | I10: 1.2 | J10: 10 | K10: 5 | L10: µg/m3 | M10: Forastiere et al., 2024 | N10: doi: 10.1097/EE9.0000000000000314
E11: ФПЧ2.5 | F11: Заболеваемост от астма (деца) | G11: 1.34 | H11: 1.1 | I11: 1.63 | J11: 10 | K11: 5 | L11: µg/m3 | M11: Forastiere et al., 2024 | N11: doi: 10.1097/EE9.0000000000000314
E12: ФПЧ2.5 | F12: Заболеваемост от ХОББ | G12: 1.18 | H12: 1.13 | I12: 1.23 | J12: 10 | K12: 5 | L12: µg/m3 | M12: Forastiere et al., 2024 | N12: doi: 10.1097/EE9.0000000000000314
E13: ФПЧ2.5 | F13: Заболеваемост от диабет тип 2 | G13: 1.1 | H13: 1.03 | I13: 1.18 | J13: 10 | K13: 5 | L13: µg/m3 | M13: Forastiere et al., 2024 | N13: doi: 10.1097/EE9.0000000000000314
E14: NO2 | F14: Обща смъртност | G14: 1.05 | H14: 1.03 | I14: 1.07 | J14: 10 | K14: 10 | L14: µg/m3 | M14: Kasdagli et al., 2024 | N14: https://doi.org/10.3389/ijph.2024.1607676
E15: NO2 | F15: Смъртност от ССЗ | G15: 1.05 | H15: 1.03 | I15: 1.08 | J15: 10 | K15: 10 | L15: µg/m3 | M15: Kasdagli et al., 2024 | N15: https://doi.org/10.3389/ijph.2024.1607676
E16: NO2 | F16: Смъртност от респираторни заболявания | G16: 1.05 | H16: 1.03 | I16: 1.07 | J16: 10 | K16: 10 | L16: µg/m3 | M16: Kasdagli et al., 2024 | N16: https://doi.org/10.3389/ijph.2024.1607676
E17: NO2 | F17: Смъртност от рак на белия дроб | G17: 1.07 | H17: 1.04 | I17: 1.1 | J17: 10 | K17: 10 | L17: µg/m3 | M17: Kasdagli et al., 2024 | N17: https://doi.org/10.3389/ijph.2024.1607676
E18: NO2 | F18: Заболеваемост от астма (възрастни) | G18: 1.1 | H18: 1.01 | I18: 1.21 | J18: 10 | K18: 10 | L18: µg/m3 | M18: Kasdagli et al., 2024 | N18: https://doi.org/10.3389/ijph.2024.1607676
E19: NO2 | F19: Заболеваемост от астма (деца) | G19: 1.1 | H19: 1.05 | I19: 1.18 | J19: 10 | K19: 10 | L19: µg/m3 | M19: Forastiere et al., 2024 | N19: doi: 10.1097/EE9.0000000000000314
E20: NO2 | F20: Заболеваемост от ОИДДП (деца) | G20: 1.09 | H20: 1.03 | I20: 1.16 | J20: 10 | K20: 10 | L20: µg/m3 | M20: Forastiere et al., 2024 | N20: doi: 10.1097/EE9.0000000000000314
E21: Автомобилен шум (L24) | F21: Обща смъртност | G21: 1.055 | H21: 1.026 | I21: 1.084 | J21: 10 | K21: 45 | L21: dBA | M21: Engelmann et al., 2024 Figure 3.1 | N21: https://www.eionet.europa.eu/etcs/etc-he/products/etc-he-products/etc-he-reports/etc-he-report-2023-11-environmental-noise-health-risk-assessment-methodology-for-assessing-health-risks-using-data-reported-under-the-environmental-noise-directive
E22: Железопътен шум (L24) | F22: Обща смъртност | G22: 1.004 | H22: 1.001 | I22: 1.007 | J22: 10 | K22: 45 | L22: dBA | M22: Engelmann et al., 2024 Figure 3.1 | N22: https://www.eionet.europa.eu/etcs/etc-he/products/etc-he-products/etc-he-reports/etc-he-report-2023-11-environmental-noise-health-risk-assessment-methodology-for-assessing-health-risks-using-data-reported-under-the-environmental-noise-directive
E23: Автомобилен шум (L24) | F23: Заболеваемост от сърдечна недостатъчност | G23: 1.041 | H23: 1.024 | I23: 1.059 | J23: 10 | K23: 45 | L23: dBA | M23: Engelmann et al., 2024 Figure 3.6 | N23: https://www.eionet.europa.eu/etcs/etc-he/products/etc-he-products/etc-he-reports/etc-he-report-2023-11-environmental-noise-health-risk-assessment-methodology-for-assessing-health-risks-using-data-reported-under-the-environmental-noise-directive
E24: Автомобилен шум (L24) | F24: Заболеваемост от хипертония | G24: 1.01 | H24: 0.99 | I24: 1.03 | J24: 10 | K24: 45 | L24: dBA | M24: Engelmann et al., 2024 Figure 3.3 Cohort studies | N24: https://www.eionet.europa.eu/etcs/etc-he/products/etc-he-products/etc-he-reports/etc-he-report-2023-11-environmental-noise-health-risk-assessment-methodology-for-assessing-health-risks-using-data-reported-under-the-environmental-noise-directive
E25: Железопътен шум (L24) | F25: Смъртност от ИБС | G25: 1.02 | H25: 1.02 | I25: 1.03 | J25: 10 | K25: 32 | L25: dBA | M25: Minkin et l., 2025, Supplementary Figure 10 | N25: https://doi.org/10.1016/j.envint.2025.109667
E26: Автомобилен шум (L24) | F26: Смъртност от инфаркт на миокарда | G26: 1.03 | H26: 1.01 | I26: 1.05 | J26: 10 | K26: 41 | L26: dBA | M26: Minkin et l., 2025, Supplementary Figure 11 | N26: https://doi.org/10.1016/j.envint.2025.109667
E27: Железопътен шум (L24) | F27: Смъртност от инфаркт на миокарда | G27: 1.02 | H27: 1.01 | I27: 1.03 | J27: 10 | K27: 32 | L27: dBA | M27: Minkin et l., 2025, Supplementary Figure 11 | N27: https://doi.org/10.1016/j.envint.2025.109667
E28: Авиационен шум (L24) | F28: Смъртност от инфаркт на миокарда | G28: 1.04 | H28: 1.02 | I28: 1.06 | J28: 10 | K28: 42 | L28: dBA | M28: Minkin et l., 2025, Supplementary Figure 11 recalc. no small-area studies | N28: https://doi.org/10.1016/j.envint.2025.109667
E29: Автомобилен шум (L24) | F29: Смъртност от диабет | G29: 1.08 | H29: 0.99 | I29: 1.18 | J29: 10 | K29: 46 | L29: dBA | M29: Vienneau et al., 2024, Fig. 4 | N29: https://link.springer.com/article/10.1186/s12940-024-01084-0
E30: Автомобилен шум (L24) | F30: Заболеваемост от диабет | G30: 1.07 | H30: 1.05 | I30: 1.09 | J30: 10 | K30: 46 | L30: dBA | M30: Vienneau et al., 2024, Fig. 4 | N30: https://link.springer.com/article/10.1186/s12940-024-01084-0
E31: Железопътен шум (L24) | F31: Заболеваемост от диабет | G31: 1.02 | H31: 1 | I31: 1.03 | J31: 10 | K31: 30 | L31: dBA | M31: Vienneau et al., 2024, Fig. 3 recalc. only incidence studies | N31: https://link.springer.com/article/10.1186/s12940-024-01084-0
E32: Автомобилен шум (L24) | F32: Заболеваемост от инфаркт на миокарда | G32: 1.029 | H32: 1.011 | I32: 1.048 | J32: 10 | K32: 40 | L32: dBA | M32: Pershagen et al., 2025 | N32: DOI: 10.1097/EE9.0000000000000400
E33: Автомобилен шум (L24) | F33: Заболеваемост от инсулт | G33: 1.025 | H33: 1.009 | I33: 1.041 | J33: 10 | K33: 40 | L33: dBA | M33: Pershagen et al., 2025 | N33: DOI: 10.1097/EE9.0000000000000400
E34: Авиационен шум (L24) | F34: Честота ИБС/инфаркт на миокарда (БГ) | G34: 1.15 | H34: 0.99 | I34: 1.34 | J34: 5 | K34: 37.5 | L34: dBA | M34: Dzhambov et al., 2025 Table 2, recalc with log-Poisson for prevalence RR | N34: https://doi.org/10.1016/j.ijheh.2024.114512
E35: NDVI (300 m) | F35: Обща смъртност | G35: 0.97 | H35: 0.95 | I35: 0.98 | J35: 0.1 | K35: линеен ефект | L35: единици | M35: Zhou et al., 2024, Fig. 3 (b) | N35: https://doi.org/10.1016/j.scs.2024.105901
E36: NDVI (300 m) | F36: Смъртност от ССЗ | G36: 0.98 | H36: 0.96 | I36: 1 | J36: 0.1 | K36: линеен ефект | L36: единици | M36: Zhou et al., 2024, Figure S2 | N36: https://doi.org/10.1016/j.scs.2024.105901
E37: NDVI (300 m) | F37: Смъртност от ИБС | G37: 0.98 | H37: 0.96 | I37: 1 | J37: 0.1 | K37: линеен ефект | L37: единици | M37: Liu et al., 2022, Table 2 | N37: https://doi.org/10.1016/j.envpol.2022.118990
E38: NDVI (300 m) | F38: Смъртност от мозъчносъдови заболявания | G38: 0.98 | H38: 0.97 | I38: 1 | J38: 0.1 | K38: линеен ефект | L38: единици | M38: Liu et al., 2022, Table 2 | N38: https://doi.org/10.1016/j.envpol.2022.118990
E39: NDVI (300 m) | F39: Смъртност от респираторни заболявания | G39: 0.95 | H39: 0.93 | I39: 0.97 | J39: 0.1 | K39: линеен ефект | L39: единици | M39: Zhou et al., 2024, Figure S4 | N39: https://doi.org/10.1016/j.scs.2024.105901
E40: NDVI (300 m) | F40: Смъртност от рак | G40: 0.95 | H40: 0.92 | I40: 0.98 | J40: 0.1 | K40: линеен ефект | L40: единици | M40: Zhou et al., 2024, Figure S6 | N40: https://doi.org/10.1016/j.scs.2024.105901
E41: NDVI (250/300 m) | F41: Болестност от хипертония | G41: 0.98 | H41: 0.97 | I41: 0.99 | J41: 0.1 | K41: линеен ефект | L41: единици | M41: Zhao et al., 2022, Fig. 2 | N41: https://doi.org/10.1016/j.scitotenv.2021.152513
E42: NDVI (300 m) | F42: Заболеваемост/честота на инсулти | G42: 0.98 | H42: 0.96 | I42: 0.99 | J42: 0.1 | K42: линеен ефект | L42: единици | M42: Liu et al., 2022, Table 2 | N42: https://doi.org/10.1016/j.envpol.2022.118990
E43: NDVI (500 m) | F43: Преждевременно раждане | G43: 0.98 | H43: 0.98 | I43: 0.99 | J43: 0.1 | K43: линеен ефект | L43: единици | M43: Hu et al., 2021, Fig. S5 | N43: https://doi.org/10.1016/j.envres.2020.110599
E44: Зелени площи % (300/500 m) | F44: Обща смъртност | G44: 0.99 | H44: 0.99 | I44: 1 | J44: 10 | K44: линеен ефект | L44: % | M44: Zhou et al., 2024, Fig. 4 (b) | N44: https://doi.org/10.1016/j.scs.2024.105901
E45: Зелени площи % (300 m) | F45: Смъртност от респираторни заболявания | G45: 0.99 | H45: 0.98 | I45: 0.99 | J45: 10 | K45: линеен ефект | L45: % | M45: Zhou et al., 2024, Figure S5 | N45: https://doi.org/10.1016/j.scs.2024.105901
E46: Зелени площи % (300 m) | F46: Смъртност от рак | G46: 0.99 | H46: 0.97 | I46: 1 | J46: 10 | K46: линеен ефект | L46: % | M46: Zhou et al., 2024, Figure S7 | N46: https://doi.org/10.1016/j.scs.2024.105901
E47: Дървесна покривка % (300 m) | F47: Болестност от диабет (БГ) | G47: 0.81 | H47: 0.67 | I47: 0.97 | J47: 10 | K47: линеен ефект | L47: % | M47: Dzhambov et al., 2025 Table 2, recalc with log-Poisson for prevalence RR | N47: https://doi.org/10.1016/j.ijheh.2024.114512
E48: Замърсяване на въздуха в жилището | F48: Заболеваемост от астма | G48: 1.68 | H48: 1.22 | I48: 2.33 | J48: 1 | K48: 1 = Използване на замърсяващи горива/технологии | L48: 1 = замърсяване / 0 = липса на замърсяване | M48: Lee et al., 2020, Table 1, Figure S32 | N48: https://www.thelancet.com/journals/langlo/article/PIIS2214-109X(20)30343-0/fulltext
E49: Замърсяване на въздуха в жилището | F49: Заболеваемост от ХОББ | G49: 1.21 | H49: 1.12 | I49: 1.31 | J49: 1 | K49: 1 = Използване на замърсяващи горива/технологии | L49: 1 = замърсяване / 0 = липса на замърсяване | M49: Lee et al., 2020, Table 1, Figure S32 | N49: https://www.thelancet.com/journals/langlo/article/PIIS2214-109X(20)30343-0/fulltext
E50: Замърсяване на въздуха в жилището | F50: Заболеваемост от ОРЗ (възрастни) | G50: 1.47 | H50: 1.26 | I50: 1.7 | J50: 1 | K50: 1 = Използване на замърсяващи горива/технологии | L50: 1 = замърсяване / 0 = липса на замърсяване | M50: Lee et al., 2020, Table 1, Figure S32 | N50: https://www.thelancet.com/journals/langlo/article/PIIS2214-109X(20)30343-0/fulltext
E51: Замърсяване на въздуха в жилището | F51: Заболеваемост от ОРЗ (деца) | G51: 1.39 | H51: 1.16 | I51: 1.68 | J51: 1 | K51: 1 = Използване на замърсяващи горива/технологии | L51: 1 = замърсяване / 0 = липса на замърсяване | M51: Lee et al., 2020, Table 1, Figure S32 | N51: https://www.thelancet.com/journals/langlo/article/PIIS2214-109X(20)30343-0/fulltext
E52: Замърсяване на въздуха в жилището | F52: Заболеваемост от рак на белия дроб | G52: 1.39 | H52: 0.99 | I52: 1.96 | J52: 1 | K52: 1 = Използване на замърсяващи горива/технологии | L52: 1 = замърсяване / 0 = липса на замърсяване | M52: Lee et al., 2020, Table 1, Figure S32 | N52: https://www.thelancet.com/journals/langlo/article/PIIS2214-109X(20)30343-0/fulltext
E53: Замърсяване на въздуха в жилището | F53: Заболевамост/болестност от туберкулоза | G53: 1.26 | H53: 1.08 | I53: 1.48 | J53: 1 | K53: 1 = Използване на замърсяващи горива/технологии | L53: 1 = замърсяване / 0 = липса на замърсяване | M53: Lee et al., 2020, Table 1 | N53: https://www.thelancet.com/journals/langlo/article/PIIS2214-109X(20)30343-0/fulltext
E54: Замърсяване на въздуха в жилището | F54: Заболеваемост от респираторни заболявания | G54: 1.31 | H54: 1.25 | I54: 1.37 | J54: 1 | K54: 1 = Използване на замърсяващи горива/технологии | L54: 1 = замърсяване / 0 = липса на замърсяване | M54: Lee et al., 2020, Table 1, Figure S32 | N54: https://www.thelancet.com/journals/langlo/article/PIIS2214-109X(20)30343-0/fulltext
E55: Замърсяване на въздуха в жилището | F55: Заболеваемост от мозъчносъдови заболявания | G55: 1.06 | H55: 1.01 | I55: 1.1 | J55: 1 | K55: 1 = Използване на замърсяващи горива/технологии | L55: 1 = замърсяване / 0 = липса на замърсяване | M55: Lee et al., 2020, Table 1, Figure S32 | N55: https://www.thelancet.com/journals/langlo/article/PIIS2214-109X(20)30343-0/fulltext
E56: Замърсяване на въздуха в жилището | F56: Заболеваемост/честота на ИБС | G56: 1.08 | H56: 1.03 | I56: 1.13 | J56: 1 | K56: 1 = Използване на замърсяващи горива/технологии | L56: 1 = замърсяване / 0 = липса на замърсяване | M56: Lee et al., 2020, Table 1, Figure S32 | N56: https://www.thelancet.com/journals/langlo/article/PIIS2214-109X(20)30343-0/fulltext
E57: Замърсяване на въздуха в жилището | F57: Заболеваемост от ССЗ | G57: 1.15 | H57: 1.05 | I57: 1.26 | J57: 1 | K57: 1 = Използване на замърсяващи горива/технологии | L57: 1 = замърсяване / 0 = липса на замърсяване | M57: Lee et al., 2020, Table 1, Figure S32 | N57: https://www.thelancet.com/journals/langlo/article/PIIS2214-109X(20)30343-0/fulltext
E58: Замърсяване на въздуха в жилището | F58: Честота на ниско тегло при раждане | G58: 1.39 | H58: 1.18 | I58: 1.64 | J58: 1 | K58: 1 = Използване на замърсяващи горива/технологии | L58: 1 = замърсяване / 0 = липса на замърсяване | M58: Lee et al., 2020, Table 1, Figure S30 | N58: https://www.thelancet.com/journals/langlo/article/PIIS2214-109X(20)30343-0/fulltext
E59: Замърсяване на въздуха в жилището | F59: Честота на мъртво раждане | G59: 1.31 | H59: 1.21 | I59: 1.42 | J59: 1 | K59: 1 = Използване на замърсяващи горива/технологии | L59: 1 = замърсяване / 0 = липса на замърсяване | M59: Lee et al., 2020, Table 1, Figure S30 | N59: https://www.thelancet.com/journals/langlo/article/PIIS2214-109X(20)30343-0/fulltext
E60: Замърсяване на въздуха в жилището | F60: Обща смъртност | G60: 1.08 | H60: 1.03 | I60: 1.14 | J60: 1 | K60: 1 = Използване на замърсяващи горива/технологии | L60: 1 = замърсяване / 0 = липса на замърсяване | M60: Lee et al., 2020, Table 1, Figure S31 | N60: https://www.thelancet.com/journals/langlo/article/PIIS2214-109X(20)30343-0/fulltext
E61: Замърсяване на въздуха в жилището | F61: Смъртност при деца под 5 години | G61: 1.24 | H61: 1.05 | I61: 1.47 | J61: 1 | K61: 1 = Използване на замърсяващи горива/технологии | L61: 1 = замърсяване / 0 = липса на замърсяване | M61: Lee et al., 2020, Table 1, Figure S31 | N61: https://www.thelancet.com/journals/langlo/article/PIIS2214-109X(20)30343-0/fulltext
E62: Замърсяване на въздуха в жилището | F62: Смъртност от ССЗ | G62: 1.07 | H62: 1.03 | I62: 1.11 | J62: 1 | K62: 1 = Използване на замърсяващи горива/технологии | L62: 1 = замърсяване / 0 = липса на замърсяване | M62: Lee et al., 2020, Table 1, Figure S31 | N62: https://www.thelancet.com/journals/langlo/article/PIIS2214-109X(20)30343-0/fulltext
E63: Замърсяване на въздуха в жилището | F63: Смъртност от респираторни заболявания | G63: 1.27 | H63: 1.01 | I63: 1.58 | J63: 1 | K63: 1 = Използване на замърсяващи горива/технологии | L63: 1 = замърсяване / 0 = липса на замърсяване | M63: Lee et al., 2020, Table 1, Figure S31 | N63: https://www.thelancet.com/journals/langlo/article/PIIS2214-109X(20)30343-0/fulltext
E64: Замърсяване на въздуха в жилището | F64: Честота на ИБС/инфаркт на миокарда (БГ) | G64: 1.49 | H64: 1.12 | I64: 2 | J64: 1 | K64: 1 = Използване на замърсяващи горива/технологии | L64: 1 = замърсяване / 0 = липса на замърсяване | M64: Dzhambov et al., 2025 Table 2, recalc with log-Poisson for prevalence RR | N64: https://doi.org/10.1016/j.ijheh.2024.114512
E66: Списък на съкращанията:
E67: L24 – A-претеглено еквивалентно ниво на шума за цялото денонощие, при което към нощния шум (23:00–07:00) се добавя корекция (наказателна добавка) от 10 dB(A), а към вечерния шум (19:00–23:00) 5 dB(A)
E68: NDVI – нормализиран диференциален вегетационен индекс (показател за степента на озеленяване)
E69: NO₂ – азотен диоксид
E70: БГ – България
E71: ИБС – исхемична болест на сърцето
E72: ОИДДП – остри инфекции на долните дихателни пътища
E73: ОРЗ – остри респираторни заболявания
E74: ССЗ – сърдечно-съдови заболявания
E75: ФПЧ2.5 – фини прахови частици с диаметър до 2.5 микрометра или по-малък
E76: ХОББ – хронична обструктивна белодробна болест
